fUST/lending_fUST_20250808
["ID","MTS","AMOUNT","RATE_DAILY","PERIOD"]
[377897412,1754605849007,-774.3639,0.00023608,7]
[377897413,1754605849015,-774.3639,0.00023608,7]
[377897414,1754605849023,-165.894152,0.00023608,7]
[377897415,1754605849030,-165.894152,0.00023608,7]
[377897416,1754605849037,-151.0,0.00023608,7]
[377897417,1754605849045,-176.240744,0.00023616,7]
[377897418,1754605849052,-176.240744,0.00023616,7]
[377897419,1754605849061,-1000.0,0.00023616,2]
[377897420,1754605849068,-2000.0,0.00023616,2]
[377897421,1754605849076,-151.0,0.00023662,7]
[377897422,1754605849083,-151.0,0.00023662,7]
[377897423,1754605849091,-983.7,0.00023662,2]
[377897424,1754605849098,-45.07080192,0.00023712,2]
[377897425,1754605849105,-205.622,0.00023712,2]
[377897426,1754605849115,-178.847,0.00023712,2]
[377897427,1754605849126,-151.0,0.00023756,7]
[377897428,1754605849135,-151.0,0.00023756,7]
[377897429,1754605849145,-214.526061,0.00023756,7]
[377897430,1754605849155,-214.526061,0.00023756,7]
[377897431,1754605849164,-420.0,0.00023805,2]
[377897432,1754605849174,-420.0,0.00023806,2]
[377897433,1754605849183,-420.0,0.00023806,2]
[377897434,1754605849193,-420.0,0.00023806,2]
[377897435,1754605849203,-1200.0,0.00023807,2]
[377897436,1754605849212,-998.768506,0.00023815,7]
[377897437,1754605849222,-998.768506,0.00023815,7]
[377897438,1754605849231,-527.315507,0.00023815,7]
[377897439,1754605849240,-527.315507,0.00023815,7]
[377897440,1754605849250,-604.172206,0.00023815,7]
[377897441,1754605849259,-604.172206,0.00023815,7]
[377897442,1754605849269,-460.0,0.00023834,2]
[377897443,1754605849279,-734.08,0.00023834,2]
[377897444,1754605849288,-1746.47,0.00023834,2]
[377897445,1754605849297,-990.61,0.00023834,2]
[377897446,1754605849307,-151.0,0.00023835,7]
[377897447,1754605849316,-151.0,0.00023835,7]
[377897448,1754605849326,-151.0,0.00023835,7]
[377897449,1754605849335,-460.0,0.00023835,2]
[377897450,1754605849345,-151.0,0.00023835,7]
[377897451,1754605849355,-608.49,0.00023835,2]
[377897452,1754605849366,-1176.61,0.00023835,2]
[377897453,1754605849381,-460.0,0.00023835,2]
[377897454,1754605849391,-150.32750447,0.00023835,2]
[377897455,1754605849401,-548.1,0.00023835,2]
[377897456,1754605849412,-998.768506,0.00023835,7]
[377897457,1754605849421,-998.768507,0.00023835,7]
[377897458,1754605849430,-470.32,0.00023835,2]
[377897459,1754605849440,-858.8,0.00023835,2]
[377897460,1754605849449,-460.0,0.00023835,2]
[377897461,1754605849460,-527.315507,0.00023835,7]
[377897462,1754605849470,-527.315516,0.00023835,7]
[377897463,1754605849480,-656.1,0.00023835,2]
[377897464,1754605849489,-460.0,0.00023835,2]
[377897465,1754605849498,-460.0,0.00023835,2]
[377897466,1754605849508,-460.0,0.00023835,2]
[377897467,1754605849518,-151.0,0.00023835,7]
[377897468,1754605849528,-460.0,0.00023835,2]
[377897469,1754605849538,-706.96,0.00023835,2]
[377897470,1754605849548,-1170.86,0.00023835,2]
[377897471,1754605849558,-151.0,0.00023835,7]
[377897472,1754605849567,-3051.09,0.00023835,2]
[377897473,1754605849576,-460.0,0.00023835,2]
[377897474,1754605849586,-1201.47,0.00023835,2]
[377897475,1754605849598,-460.0,0.00023835,2]
[377897476,1754605849608,-774.3639,0.00023835,7]
[377897477,1754605849619,-774.363906,0.00023835,7]
[377897478,1754605849630,-460.0,0.00023835,2]
[377897479,1754605849639,-460.0,0.00023835,2]
[377897480,1754605849648,-460.0,0.00023835,2]
[377897481,1754605849658,-650.66,0.00023835,2]
[377897482,1754605849668,-1047.35,0.00023835,2]
[377897483,1754605849677,-165.894152,0.00023835,7]
[377897484,1754605849686,-165.894152,0.00023835,7]
[377897485,1754605849695,-460.0,0.00023835,2]
[377897486,1754605849705,-502.46,0.00023835,2]
[377897487,1754605849714,-613.88,0.00023835,2]
[377897488,1754605849723,-460.0,0.00023835,2]
[377897489,1754605849732,-460.0,0.00023835,2]
[377897490,1754605849742,-844.95,0.00023835,2]
[377897491,1754605849751,-468.92,0.00023835,2]
[377897492,1754605849760,-214.526061,0.00023835,7]
[377897493,1754605849770,-1057.15,0.00023835,2]
[377897494,1754605849779,-214.526065,0.00023835,7]
[377897495,1754605849788,-176.240744,0.00023835,7]
[377897496,1754605849798,-604.172206,0.00023835,7]
[377897497,1754605849807,-176.240742,0.00023835,7]
[377897498,1754605849818,-604.172211,0.00023835,7]
[377897499,1754605849827,-151.0,0.00023835,7]
[377897500,1754605849836,-782.51,0.00023835,2]
[377897501,1754605849845,-460.0,0.00023835,2]
[377897502,1754605849855,-151.0,0.000239,8]
[377897503,1754605849866,-500.0,0.00023904,2]
[377897504,1754605849878,-1680.0,0.00023916,2]
[377897505,1754605849887,-179.334206,0.00023919,7]
[377897506,1754605849896,-150.0,0.00023946,2]
[377897507,1754605849905,-1500.0,0.00023968,2]
[377897508,1754605849916,-500.0,0.00023968,2]
[377897509,1754605849925,-220.053,0.00023986,2]
[377897510,1754605849935,-250.0,0.00023986,2]
[377897511,1754605849944,-260.849,0.00023986,2]
[377897512,1754605849954,-219.412,0.00023986,2]
[377897513,1754605849964,-360.0,0.00023986,2]
[377897514,1754605849973,-160.0,0.00024,7]
[377897515,1754605849982,-527.57568145,0.00024,7]
[377897516,1754605849991,-312.16666667,0.00024,7]
[377897517,1754605850003,-160.0,0.00024,7]
[377897518,1754605850013,-1699.06142133,0.00024,2]
[377897519,1754605850023,-160.0,0.00024,7]
[377897520,1754605850033,-322.90547651,0.00024,2]
[377897521,1754605850043,-455.3730055,0.00024,2]
[377897522,1754605850052,-1023.93026867,0.00024,7]
[377897523,1754605850061,-160.0,0.00024,7]
[377897524,1754605850071,-216.52217562,0.00024,7]
[377897525,1754605850080,-160.0,0.00024,7]
[377897526,1754605850089,-842.63596909,0.00024,7]
[377897527,1754605850099,-2149.0,0.00024016,2]
[377897528,1754605850108,-971.0,0.00024016,2]
[377897529,1754605850117,-151.0,0.00024016,7]
[377897530,1754605850128,-1000.0,0.00024039,2]
[377897531,1754605850138,-250.0,0.00024043,2]
[377897532,1754605850147,-500.0,0.00024043,2]
[377897533,1754605850156,-983.7,0.00024052,3]
[377897534,1754605850166,-1000.0,0.00024087,2]
[377897535,1754605850175,-150.0,0.00024092,2]
[377897536,1754605850184,-151.0,0.000241,5]
[377897537,1754605850193,-460.0,0.00024108,2]
[377897538,1754605850203,-734.08,0.00024108,2]
[377897539,1754605850212,-1746.47,0.00024108,2]
[377897540,1754605850222,-990.61,0.00024108,2]
[377897541,1754605850231,-151.0,0.00024109,7]
[377897542,1754605850240,-151.0,0.00024109,7]
[377897543,1754605850250,-460.0,0.00024109,2]
[377897544,1754605850260,-151.0,0.00024109,7]
[377897545,1754605850270,-608.49,0.00024109,2]
[377897546,1754605850279,-1176.61,0.00024109,2]
[377897547,1754605850289,-460.0,0.00024109,2]
[377897548,1754605850298,-548.1,0.00024109,2]
[377897549,1754605850307,-470.32,0.00024109,2]
[377897550,1754605850317,-858.8,0.00024109,2]
[377897551,1754605850327,-460.0,0.00024109,2]
[377897552,1754605850337,-656.1,0.00024109,2]
[377897553,1754605850348,-460.0,0.00024109,2]
[377897554,1754605850359,-460.0,0.00024109,2]
[377897555,1754605850372,-162.96475019,0.00024109,2]
[377897556,1754605850388,-460.0,0.00024109,2]
[377897557,1754605850398,-706.96,0.00024109,2]
[377897558,1754605850409,-1170.86,0.00024109,2]
[377897559,1754605850419,-3051.09,0.00024109,2]
[377897560,1754605850429,-460.0,0.00024109,2]
[377897561,1754605850438,-1201.47,0.00024109,2]
[377897562,1754605850449,-460.0,0.00024109,2]
[377897563,1754605850459,-460.0,0.00024109,2]
[377897564,1754605850469,-460.0,0.00024109,2]
[377897565,1754605850478,-460.0,0.00024109,2]
[377897566,1754605850487,-650.66,0.00024109,2]
[377897567,1754605850496,-1047.35,0.00024109,2]
[377897568,1754605850506,-460.0,0.00024109,2]
[377897569,1754605850516,-502.46,0.00024109,2]
[377897570,1754605850525,-613.88,0.00024109,2]
[377897571,1754605850535,-460.0,0.00024109,2]
[377897572,1754605850544,-460.0,0.00024109,2]
[377897573,1754605850554,-844.95,0.00024109,2]
[377897574,1754605850564,-468.92,0.00024109,2]
[377897575,1754605850574,-1057.15,0.00024109,2]
[377897576,1754605850583,-782.51,0.00024109,2]
[377897577,1754605850593,-460.0,0.00024109,2]
[377897578,1754605850603,-1000.0,0.00024156,2]
[377897579,1754605850613,-502.87857848,0.00024156,2]
[377897580,1754605850623,-2500.0,0.00024164,2]
[377897581,1754605850637,-783.501,0.000242,6]
[377897582,1754605850646,-178.842,0.00024202,6]
[377897583,1754605850656,-2788.0,0.0002426,2]
[377897584,1754605850665,-151.0,0.0002426,7]
[377897585,1754605850675,-298.830354,0.00024283,7]
[377897586,1754605850686,-215.31718835,0.00024283,3]
[377897587,1754605850696,-151.0,0.000243,5]
[377897588,1754605850706,-600.0,0.00024316,2]
[377897589,1754605850715,-2788.0,0.00024324,2]
[377897590,1754605850725,-151.0,0.00024324,7]
[377897591,1754605850734,-281.941538,0.00024344,2]
[377897592,1754605850744,-2859.84476499,0.00024353,7]
[377897593,1754605850976,-3028.15523501,0.00024353,7]
[377897594,1754605850986,-527.57568145,0.0002436,7]
[377897595,1754605850996,-460.0,0.00024382,2]
[377897596,1754605851009,-734.08,0.00024382,2]
[377897597,1754605851019,-932.18908354,0.00024382,2]
[377897598,1754605851031,-814.28091646,0.00024382,2]
[377897599,1754605851041,-990.61,0.00024382,2]
[377897600,1754605851051,-151.0,0.00024383,7]
[377897601,1754605851061,-460.0,0.00024383,2]
[377897602,1754605851071,-608.49,0.00024383,2]
[377897603,1754605851080,-391.814876,0.00024383,2]
[377897604,1754605851093,-784.795124,0.00024383,2]
[377897605,1754605851103,-460.0,0.00024383,2]
[377897606,1754605851113,-548.1,0.00024383,2]
[377897607,1754605851123,-470.32,0.00024383,2]
[377897608,1754605851137,-675.484836,0.00024383,2]
[377897609,1754605851150,-183.315164,0.00024383,2]
[377897610,1754605851159,-460.0,0.00024383,2]
[377897611,1754605851169,-656.1,0.00024383,2]
[377897612,1754605851180,-460.0,0.00024383,2]
[377897613,1754605851189,-460.0,0.00024383,2]
[377897614,1754605851199,-426.47346375,0.00024383,2]
[377897615,1754605851208,-706.96,0.00024383,2]
[377897616,1754605851217,-1170.86,0.00024383,2]
[377897617,1754605851226,-3051.09,0.00024383,2]
[377897618,1754605851236,-460.0,0.00024383,2]
[377897619,1754605851245,-1201.47,0.00024383,2]
[377897620,1754605851255,-90.18293174,0.00024383,2]
[377897621,1754605851427,-460.0,0.00021917,2]
[377897622,1754605851436,-460.0,0.00021917,2]
[377897623,1754605851445,-3005.33946579,0.00022639,2]
[377897624,1754605851457,-369.81706826,0.00024383,2]
[377897625,1754605851467,-460.0,0.00024383,2]
[377897626,1754605851477,-460.0,0.00024383,2]
[377897627,1754605851487,-460.0,0.00024383,2]
[377897628,1754605851496,-650.66,0.00024383,2]
[377897629,1754605851506,-1047.35,0.00024383,2]
[377897630,1754605851516,-460.0,0.00024383,2]
[377897631,1754605851525,-502.46,0.00024383,2]
[377897632,1754605851535,-613.88,0.00024383,2]
[377897633,1754605851544,-460.0,0.00024383,2]
[377897634,1754605851554,-460.0,0.00024383,2]
[377897635,1754605851563,-844.95,0.00024383,2]
[377897636,1754605851573,-468.92,0.00024383,2]
[377897637,1754605851584,-1057.15,0.00024383,2]
[377897638,1754605851593,-782.51,0.00024383,2]
[377897639,1754605851603,-460.0,0.00024383,2]
[377897640,1754605851612,-151.0,0.000244,7]
[377897641,1754605851622,-983.7,0.00024442,3]
[377897642,1754605851633,-1378.18724528,0.00024454,2]
[377897643,1754605851732,182.1595169,0.00020906,2]
[377897644,1754605851812,-460.84939507,0.00021917,2]
[377897645,1754605851822,-460.0,0.00021917,2]
[377897646,1754605851831,-474.43761777,0.00021917,2]
[377897647,1754605851841,-3005.33946578,0.00023187,2]
[377897648,1754605851851,-3005.33946578,0.00023735,2]
[377897649,1754605851860,-636.0,0.00024016,2]
[377897650,1754605851869,-497.96968409,0.00024454,2]
[377897651,1754605851883,-911.84307063,0.00024454,2]
[377897652,1754605851892,-600.0,0.0002446,2]
[377897653,1754605851903,-435.66,0.00024485,2]
[377897654,1754605851912,-310.94,0.00024485,2]
[377897655,1754605851922,-151.0,0.000245,10]
[377897656,1754605851931,-2788.0,0.00024508,2]
[377897657,1754605851940,-2000.0,0.00024516,2]
[377897658,1754605851950,-563.75692937,0.00024526,2]
[377897659,1754605852114,-825.3033446,0.00024282,2]
[377897660,1754605852128,-2180.03612118,0.00024282,2]
[377897661,1754605852139,-2224.24307063,0.00024526,2]
[377897662,1754605852149,-460.0,0.00024533,2]
[377897663,1754605852159,-281.941538,0.0002455,7]
[377897664,1754605852168,-160.24,0.00024566,2]
[377897665,1754605852178,-1500.0,0.00024587,2]
[377897666,1754605852188,-151.0,0.0002459,7]
[377897667,1754605852198,-2788.0,0.0002459,7]
[377897668,1754605852207,-350.0,0.00024591,2]
[377897669,1754605852217,-151.0,0.000246,5]
[377897670,1754605852227,-5675.30896373,0.000246,2]
[377897671,1754605852239,-4437.14478383,0.000246,2]
[377897672,1754605852248,-300.0,0.0002464,2]
[377897673,1754605852258,-200.0,0.00024649,2]
[377897674,1754605852268,-201.006158,0.00024649,2]
[377897675,1754605852279,-72998.03807665,0.0002465,2]
[377897676,1754605908335,2000.0,0.00026188,30]
[377897679,1754606012693,155.40852683,0.00021162,2]
[377897682,1754606288048,10000.0,0.0003191,30]
[377897683,1754606329295,996.0,0.00030137,120]
[377897687,1754606455407,7981.5703208,0.00031914,30]
[377897688,1754606549584,24900.0,0.00020864,2]
[377897689,1754606553916,173.463194,0.00013699,2]
[377897690,1754606554155,173.463194,0.00020187,2]
[377897695,1754606847406,7572.6366216,0.00020839,2]
[377897697,1754606852397,151.36378773,0.00020797,2]
[377897701,1754606932036,303.00000301,0.00020693,4]
[377897779,1754607038549,-300.0,0.00021806,2]
[377897780,1754607038559,-300.0,0.00021806,2]
[377897781,1754607038568,-191.15330908,0.00021806,2]
[377897782,1754607038580,-108.84669092,0.00021806,2]
[377897783,1754607038590,-300.0,0.00021806,2]
[377897784,1754607038600,-51.15330908,0.00021806,2]
[377897797,1754607040569,-1148.84669092,0.00021806,2]
[377897798,1754607040579,-32.05330908,0.00021807,2]
[377897800,1754607042624,1000.0,0.00020839,2]
[377897816,1754607043710,-1760.89707238,0.00021807,2]
[377897817,1754607043721,-442.56104858,0.00021807,2]
[377897818,1754607043731,-1863.12,0.00021807,10]
[377897819,1754607043740,-1552.6,0.00021807,10]
[377897821,1754607043750,-500.0,0.00021816,2]
[377897823,1754607043763,-290.82157151,0.00021816,2]
[377897825,1754607043772,-236.00633921,0.00021816,2]
[377897827,1754607043781,-166.33671042,0.00021816,2]
[377897828,1754607043791,-1200.0,0.00021816,2]
[377897829,1754607043802,-96576.94611949,0.00021817,2]
[377897830,1754607043811,-718.29,0.00021907,3]
[377897831,1754607043820,-359.14,0.00021907,3]
[377897832,1754607043831,-179.57,0.00021907,3]
[377897833,1754607043841,-538.75,0.00021907,3]
[377897834,1754607043850,-500.0,0.00021917,2]
[377897835,1754607043861,-460.0,0.00021917,2]
[377897836,1754607043871,-460.0,0.00021917,2]
[377897837,1754607043880,-460.0,0.00021917,2]
[377897838,1754607043890,-314.59413272,0.00021917,2]
[377897839,1754607043899,-240.74771748,0.00021917,2]
[377897840,1754607043908,-460.0,0.00021917,2]
[377897841,1754607043918,-460.0,0.00021917,2]
[377897842,1754607043927,-502.26087941,0.00021917,2]
[377897843,1754607043937,-460.0,0.00021917,2]
[377897844,1754607043947,-460.0,0.00021917,2]
[377897845,1754607043958,-460.0,0.00021917,2]
[377897846,1754607043967,-460.0,0.00021917,2]
[377897847,1754607043978,-460.0,0.00021917,2]
[377897848,1754607043988,-339.7086389,0.00021917,2]
[377897849,1754607043998,-460.0,0.00021917,2]
[377897850,1754607044007,-460.0,0.00021917,2]
[377897851,1754607044016,-460.0,0.00021917,2]
[377897852,1754607044025,-465.02819862,0.00021917,2]
[377897853,1754607044035,-460.0,0.00021917,2]
[377897854,1754607044044,-460.0,0.00021917,2]
[377897855,1754607044053,-460.0,0.00021917,2]
[377897856,1754607044062,-460.0,0.00021917,2]
[377897857,1754607044071,-460.0,0.00021917,2]
[377897858,1754607044081,-215.92478924,0.00021917,2]
[377897859,1754607044091,-460.0,0.00021917,2]
[377897860,1754607044100,-460.0,0.00021917,2]
[377897861,1754607044113,-460.0,0.00021917,2]
[377897862,1754607044122,-460.0,0.00021917,2]
[377897863,1754607044132,-460.0,0.00021917,2]
[377897864,1754607044141,-460.0,0.00021917,2]
[377897865,1754607044150,-460.0,0.00021917,2]
[377897866,1754607044162,-228.48671328,0.00021917,2]
[377897867,1754607044171,-460.0,0.00021917,2]
[377897868,1754607044181,-460.0,0.00021917,2]
[377897869,1754607044190,-460.0,0.00021917,2]
[377897870,1754607044199,-460.0,0.00021917,2]
[377897871,1754607044208,-460.0,0.00021917,2]
[377897872,1754607044218,-460.0,0.00021917,2]
[377897873,1754607044227,-460.0,0.00021917,2]
[377897874,1754607044236,-460.0,0.00021917,2]
[377897875,1754607044245,-460.0,0.00021917,2]
[377897876,1754607044255,-460.0,0.00021917,2]
[377897877,1754607044264,-461.81284186,0.00021917,2]
[377897878,1754607044273,-460.0,0.00021917,2]
[377897879,1754607044282,-460.0,0.00021917,2]
[377897880,1754607044291,-460.0,0.00021917,2]
[377897881,1754607044300,-460.0,0.00021917,2]
[377897882,1754607044310,-460.0,0.00021917,2]
[377897883,1754607044319,-460.0,0.00021917,2]
[377897884,1754607044328,-471.50969797,0.00021917,2]
[377897885,1754607044338,-460.0,0.00021917,2]
[377897886,1754607044347,-460.0,0.00021917,2]
[377897887,1754607044360,-460.0,0.00021917,2]
[377897888,1754607044369,-460.0,0.00021917,2]
[377897889,1754607044379,-460.0,0.00021917,2]
[377897890,1754607044389,-460.0,0.00021917,2]
[377897891,1754607044398,-460.0,0.00021917,2]
[377897892,1754607044407,-460.0,0.00021917,2]
[377897893,1754607044417,-460.0,0.00021917,2]
[377897894,1754607044426,-461.20424097,0.00021917,2]
[377897895,1754607044436,-460.0,0.00021917,2]
[377897896,1754607044445,-460.0,0.00021917,2]
[377897897,1754607044454,-460.0,0.00021917,2]
[377897898,1754607044463,-583.95978401,0.00021917,2]
[377897899,1754607044472,-460.0,0.00021917,2]
[377897900,1754607044480,-460.0,0.00021917,2]
[377897901,1754607044490,-460.0,0.00021917,2]
[377897902,1754607044500,-460.0,0.00021917,2]
[377897903,1754607044510,-460.0,0.00021917,2]
[377897904,1754607044519,-460.0,0.00021917,2]
[377897905,1754607044529,-460.0,0.00021917,2]
[377897906,1754607044538,-460.0,0.00021917,2]
[377897907,1754607044547,-460.0,0.00021917,2]
[377897908,1754607044556,-460.0,0.00021917,2]
[377897909,1754607044566,-460.0,0.00021917,2]
[377897910,1754607044575,-460.0,0.00021917,2]
[377897911,1754607044584,-460.0,0.00021917,2]
[377897912,1754607044593,-2429.38,0.00021917,2]
[377897913,1754607044603,-460.0,0.00021917,2]
[377897914,1754607044612,-460.0,0.00021917,2]
[377897915,1754607044621,-460.0,0.00021917,2]
[377897916,1754607044630,-460.0,0.00021917,2]
[377897917,1754607044639,-460.0,0.00021917,2]
[377897918,1754607044648,-460.0,0.00021917,2]
[377897919,1754607044657,-460.0,0.00021917,2]
[377897920,1754607044666,-460.0,0.00021917,2]
[377897921,1754607044675,-460.0,0.00021917,2]
[377897922,1754607044683,-460.0,0.00021917,2]
[377897923,1754607044692,-461.30587264,0.00021917,2]
[377897924,1754607044702,-898.32,0.00021917,2]
[377897925,1754607044711,-646.1,0.00021917,2]
[377897926,1754607044720,-460.0,0.00021917,2]
[377897927,1754607044729,-460.0,0.00021917,2]
[377897928,1754607044739,-460.0,0.00021917,2]
[377897929,1754607044749,-460.0,0.00021917,2]
[377897930,1754607044761,-460.0,0.00021917,2]
[377897931,1754607044770,-460.0,0.00021917,2]
[377897932,1754607044779,-515.11,0.00021917,2]
[377897933,1754607044788,-460.0,0.00021917,2]
[377897934,1754607044798,-1382.62,0.00021917,2]
[377897935,1754607044807,-460.0,0.00021917,2]
[377897936,1754607044816,-460.0,0.00021917,2]
[377897937,1754607044826,-460.0,0.00021917,2]
[377897938,1754607044837,-460.0,0.00021917,2]
[377897939,1754607044846,-460.0,0.00021917,2]
[377897940,1754607044857,-619.49,0.00021917,2]
[377897941,1754607044866,-460.0,0.00021917,2]
[377897942,1754607044875,-247.99659729,0.00021917,2]
[377897943,1754607044885,-460.0,0.00021917,2]
[377897944,1754607044894,-460.0,0.00021917,2]
[377897945,1754607044903,-460.0,0.00021917,2]
[377897946,1754607044912,-460.0,0.00021917,2]
[377897947,1754607044922,-559.68,0.00021917,2]
[377897948,1754607044932,-1349.93,0.00021917,2]
[377897949,1754607044942,-460.0,0.00021917,2]
[377897950,1754607044951,-460.0,0.00021917,2]
[377897951,1754607044961,-460.0,0.00021917,2]
[377897952,1754607044970,-460.0,0.00021917,2]
[377897953,1754607044979,-460.0,0.00021917,2]
[377897954,1754607044988,-460.0,0.00021917,2]
[377897955,1754607044998,-462.91997383,0.00021917,2]
[377897956,1754607045008,-460.0,0.00021917,2]
[377897957,1754607045017,-460.0,0.00021917,2]
[377897958,1754607045026,-460.0,0.00021917,2]
[377897959,1754607045035,-460.0,0.00021917,2]
[377897960,1754607045045,-460.0,0.00021917,2]
[377897961,1754607045053,-773.73,0.00021917,2]
[377897962,1754607045062,-460.0,0.00021917,2]
[377897963,1754607045072,-460.0,0.00021917,2]
[377897964,1754607045082,-460.0,0.00021917,2]
[377897965,1754607045091,-970.33,0.00021917,2]
[377897966,1754607045100,-460.0,0.00021917,2]
[377897967,1754607045110,-461.55490506,0.00021917,2]
[377897968,1754607045119,-150.0,0.00021917,2]
[377897969,1754607045128,-460.0,0.00021917,2]
[377897970,1754607045137,-460.0,0.00021917,2]
[377897971,1754607045145,-460.0,0.00021917,2]
[377897972,1754607045154,-372.92925353,0.00021917,2]
[377897975,1754607046460,-31.64998435,0.00021917,2]
[377897976,1754607046469,-460.0,0.00021917,2]
[377897977,1754607046479,-569.87084336,0.00021917,2]
[377897979,1754607046488,-460.0,0.00021917,2]
[377897980,1754607046498,-460.0,0.00021917,2]
[377897981,1754607046508,-460.0,0.00021917,2]
[377897982,1754607046517,-783.92,0.00021917,2]
[377897983,1754607046527,-460.0,0.00021917,2]
[377897984,1754607046536,-460.0,0.00021917,2]
[377897985,1754607046545,-460.0,0.00021917,2]
[377897986,1754607046555,-460.0,0.00021917,2]
[377897987,1754607046564,-460.0,0.00021917,2]
[377897988,1754607046573,-867.62,0.00021917,2]
[377897989,1754607046583,-460.0,0.00021917,2]
[377897990,1754607046593,-684.16,0.00021917,2]
[377897991,1754607046602,-460.0,0.00021917,2]
[377897992,1754607046612,-460.0,0.00021917,2]
[377897993,1754607046621,-460.0,0.00021917,2]
[377897994,1754607046631,-460.0,0.00021917,2]
[377897995,1754607046640,-460.0,0.00021917,2]
[377897996,1754607046650,-461.16672861,0.00021917,2]
[377897997,1754607046659,-855.19,0.00021917,2]
[377897998,1754607046668,-460.0,0.00021917,2]
[377898000,1754607046677,-460.0,0.00021917,2]
[377898002,1754607046686,-638.05,0.00021917,2]
[377898005,1754607046695,-460.0,0.00021917,2]
[377898007,1754607046704,-789.94,0.00021917,2]
[377898009,1754607046713,-460.0,0.00021917,2]
[377898011,1754607046722,-460.0,0.00021917,2]
[377898013,1754607046732,-460.0,0.00021917,2]
[377898015,1754607046741,-460.0,0.00021917,2]
[377898021,1754607046751,-460.0,0.00021917,2]
[377898022,1754607046905,-460.0,0.00021917,2]
[377898023,1754607046915,-460.0,0.00021917,2]
[377898024,1754607046925,-480.0,0.00021917,2]
[377898025,1754607046934,-466.92913404,0.00021917,2]
[377898026,1754607046943,-460.0,0.00021917,2]
[377898027,1754607046952,-460.0,0.00021917,2]
[377898028,1754607046962,-460.0,0.00021917,2]
[377898029,1754607046971,-463.11310984,0.00021917,2]
[377898030,1754607046980,-460.0,0.00021917,2]
[377898031,1754607046989,-538.71,0.00021917,2]
[377898032,1754607046999,-915.95,0.00021917,2]
[377898033,1754607047008,-460.0,0.00021917,2]
[377898034,1754607047017,-460.0,0.00021917,2]
[377898035,1754607047026,-460.0,0.00021917,2]
[377898036,1754607047035,-546.66,0.00021917,2]
[377898037,1754607047044,-460.0,0.00021917,2]
[377898038,1754607047054,-462.14094442,0.00021917,2]
[377898039,1754607047063,-460.0,0.00021917,2]
[377898040,1754607047073,-460.0,0.00021917,2]
[377898041,1754607047084,-460.0,0.00021917,2]
[377898042,1754607047093,-460.0,0.00021917,2]
[377898043,1754607047104,-460.0,0.00021917,2]
[377898044,1754607047113,-460.0,0.00021917,2]
[377898045,1754607047123,-361.23,0.00022,2]
[377898046,1754607047132,-460.0,0.00022191,2]
[377898047,1754607047141,-460.0,0.00022191,2]
[377898048,1754607047150,-460.0,0.00022191,2]
[377898049,1754607047159,-460.0,0.00022191,2]
[377898050,1754607047168,-460.0,0.00022191,2]
[377898051,1754607047178,-460.0,0.00022191,2]
[377898052,1754607047187,-460.0,0.00022191,2]